bitfinex/quotes_SOLUSD_20250721
["timestamp","ask_amount","ask_price","bid_price","bid_amount"]
[1753069084368,39.41909922,186.01,186.0,8836.51620861]
[1753069085174,46.33476821,186.01,186.0,8821.92383933]
[1753069085391,51.68357613,186.01,186.0,8821.92383933]
[1753069085569,67.72999989,186.01,186.0,8739.35390115]
[1753069085973,67.72999989,186.01,186.0,8559.59149312]
[1753069086370,74.26226833,186.01,186.0,8467.67921295]
[1753069086579,74.26226833,186.01,186.0,8269.85066006]
[1753069086785,74.26226833,186.01,186.0,8163.05976399]
[1753069086972,74.26226833,186.01,186.0,7983.9595395]
[1753069087393,67.72999989,186.01,186.0,7983.9595395]
[1753069087597,46.33476821,186.01,186.0,7983.9595395]
[1753069087770,84.51476821,186.01,186.0,7983.9595395]
[1753069087967,84.51476821,186.01,186.0,7969.36717022]
[1753069088576,84.51476821,186.01,186.0,7961.63601379]
[1753069090294,46.33476821,186.01,186.0,7961.63601379]
[1753069090483,84.51476821,186.01,186.0,7961.63601379]
[1753069094296,84.51476821,186.01,186.0,7796.57183893]
[1753069094489,84.51476821,186.01,186.0,7698.90466147]
[1753069094681,84.51476821,186.01,186.0,7619.16275466]
[1753069097003,84.51476821,186.01,186.0,7542.15499278]
[1753069097503,84.57476821,186.01,186.0,7386.81063324]
[1753069097699,84.57476821,186.01,186.0,7306.9731041]
[1753069098597,84.57476821,186.01,186.0,7230.53690469]
[1753069098788,84.57476821,186.01,186.0,7152.90226828]
[1753069101004,87.37475699,186.01,186.0,7152.90226828]
[1753069101410,92.72356491,186.01,186.0,7152.90226828]
[1753069101585,87.37475699,186.01,186.0,7152.90226828]
[1753069103408,108.76998867,186.01,186.0,7085.21226828]
[1753069103613,70.58998867,186.01,186.0,7070.97226828]
[1753069103787,108.70998867,186.01,186.0,7070.97226828]
[1753069104195,108.70998867,186.01,186.0,7063.85226828]
[1753069104395,108.70998867,186.01,186.0,7056.73226828]
[1753069104597,108.70998867,186.01,186.0,7049.61226828]
[1753069104792,115.25207934,186.01,186.0,7049.61226828]
[1753069104991,83.15923182,186.01,186.0,7049.61226828]
[1753069105716,83.15923182,186.01,186.0,6930.48116895]
[1753069105912,89.29776457,186.01,186.0,6690.3605987]
[1753069106080,89.29776457,186.01,186.0,6541.04252534]
[1753069106287,89.29776457,186.01,186.0,6435.09345687]
[1753069106486,51.17776457,186.01,186.0,6341.59819563]
[1753069106711,89.29776457,186.01,186.0,6334.47819563]
[1753069106883,51.17776457,186.01,186.0,6324.66833073]
[1753069107092,89.29776457,186.01,186.0,6324.66833073]
[1753069107316,89.29776457,186.01,186.0,6321.97846583]
[1753069108813,83.15923182,186.01,186.0,6321.97846583]
[1753069108988,76.61714115,186.01,186.0,6321.97846583]
[1753069109429,76.61714115,186.01,186.0,6313.75846583]
[1753069109609,76.61714115,186.01,186.0,6306.63846583]
[1753069109810,76.57714115,186.01,186.0,6306.63846583]
[1753069110012,77.57714115,186.01,186.0,6306.63846583]
[1753069110516,116.29714115,186.01,186.0,6306.63846583]
[1753069114700,110.9210861,186.01,186.0,6306.63846583]
[1753069115203,110.9210861,186.01,186.0,6289.0929197]
[1753069115400,110.9210861,186.01,186.0,6284.78153316]
[1753069115603,72.1710861,186.01,186.0,6284.78153316]
[1753069115811,110.2110861,186.01,186.0,6284.78153316]
[1753069116004,110.9010861,186.01,186.0,6284.78153316]
[1753069120517,72.1710861,186.01,186.0,6284.78153316]
[1753069120727,110.1710861,186.01,186.0,6284.78153316]
[1753069121327,110.8610861,186.01,186.0,6284.78153316]
[1753069122917,110.1710861,186.01,186.0,6284.78153316]
[1753069123998,110.1710861,186.01,186.0,6285.50153316]
[1753069124312,93.38640213,186.01,186.0,6285.50153316]
[1753069126537,45.38640213,186.01,186.0,6291.56903316]
[1753069126706,83.34640213,186.01,186.0,6291.56903316]
[1753069128191,83.34640213,186.01,186.0,6295.52633316]
[1753069128810,34.51560213,186.01,186.0,6295.52633316]
[1753069129025,27.84900213,186.01,186.0,6295.52633316]
[1753069129204,65.78900213,186.01,186.0,6295.52633316]
[1753069140531,65.78900213,186.01,186.0,6289.45883316]
[1753069140712,78.5875656,186.01,186.0,6284.78153316]
[1753069141033,79.2775656,186.01,186.0,6284.78153316]
[1753069141823,79.3375656,186.01,186.0,6284.78153316]
[1753069144353,82.14157384,186.01,186.0,6284.78153316]
[1753069144524,81.45157384,186.01,186.0,6284.78153316]
[1753069144719,81.39157384,186.01,186.0,6284.78153316]
[1753069151741,82.08157384,186.01,186.0,6284.78153316]
[1753069151939,30.7075656,186.01,186.0,6285.50153316]
[1753069152341,27.90900213,186.01,186.0,6285.50153316]
[1753069152545,65.76900213,186.01,186.0,6285.50153316]
[1753069153528,27.90900213,186.01,186.0,6285.50153316]
[1753069153736,65.74900213,186.01,186.0,6285.50153316]
[1753069163124,65.74900213,186.01,186.0,6284.78153316]
[1753069163355,75.74900213,186.01,186.0,6284.78153316]
[1753069163533,65.74900213,186.01,186.0,6285.48153316]
[1753069165327,65.74900213,186.01,186.0,6284.78153316]
[1753069166143,65.74900213,186.01,186.0,6285.48153316]
[1753069166655,27.90900213,186.01,186.0,6285.48153316]
[1753069167081,65.74900213,186.01,186.0,6285.48153316]
[1753069172842,37.9,186.01,186.0,6285.48153316]
[1753069180653,37.9,186.01,186.0,6284.78153316]
[1753069180966,40.70051751,186.01,186.0,6284.78153316]
[1753069181143,41.37051751,186.01,186.0,6284.78153316]
[1753069181346,51.37051751,186.01,186.0,6284.78153316]
[1753069184475,0.06,186.01,186.0,6285.49153316]
[1753069184769,37.9,186.01,186.0,6285.49153316]
[1753069184973,37.9,186.01,186.0,6284.78153316]
[1753069186148,37.9,186.01,186.0,6285.49153316]
[1753069192375,37.9,186.01,186.0,6284.78153316]
[1753069193580,37.9,186.01,186.0,6285.49153316]
[1753069194987,37.9,186.01,186.0,6284.78153316]
[1753069195885,37.9,186.01,186.0,6285.49153316]
[1753069196207,37.9,186.01,186.0,6284.78153316]
[1753069196514,38.57,186.01,186.0,6284.78153316]
[1753069196711,37.9,186.01,186.0,6284.78153316]
[1753069197483,37.9,186.01,186.0,6285.49153316]
[1753069198288,37.9,186.01,186.0,6284.78153316]
[1753069198808,0.06,186.01,186.0,6285.49153316]
[1753069199111,37.9,186.01,186.0,6285.49153316]
[1753069201592,37.9,186.01,186.0,6284.78153316]
[1753069202616,38.57,186.01,186.0,6284.78153316]
[1753069202903,68.9759108,186.01,186.0,6284.78153316]
[1753069203625,65.35468397,186.01,186.0,6284.78153316]
[1753069205882,48.57,186.01,186.0,6284.78153316]
[1753069206115,37.9,186.01,186.0,6284.78153316]
[1753069206696,47.9,186.01,186.0,6284.78153316]
[1753069206898,37.9,186.01,186.0,6284.78153316]
[1753069208793,37.9,186.01,186.0,6285.49153316]
[1753069209990,37.9,186.01,186.0,6284.78153316]
[1753069210306,37.9,186.01,186.0,6285.49153316]
[1753069210815,37.9,186.01,186.0,6284.78153316]
[1753069214317,37.9,186.01,186.0,6285.46153316]
[1753069214624,37.9,186.01,186.0,6284.78153316]
[1753069217004,37.9,186.01,186.0,6285.46153316]
[1753069225318,43.27605505,186.01,186.0,6285.46153316]
[1753069225527,43.27605505,186.01,186.0,6302.24621713]
[1753069225833,43.25605505,186.01,186.0,6309.30663806]
[1753069227705,43.25605505,186.01,186.0,6306.02331713]
[1753069229825,43.25605505,186.01,186.0,6289.23863316]
[1753069230425,43.25605505,186.01,186.0,6284.78153316]
[1753069231219,5.43605505,186.01,186.0,6285.46153316]
[1753069231428,43.25605505,186.01,186.0,6302.24621713]
[1753069233808,43.25605505,186.01,186.0,6285.46153316]
[1753069235135,43.25605505,186.01,186.0,6284.96153316]
[1753069235339,43.25605505,186.01,186.0,6301.74621713]
[1753069237446,37.88,186.01,186.0,6308.91883806]
[1753069237615,43.25605505,186.01,186.0,6316.67733806]
[1753069238039,43.25605505,186.01,186.0,6313.39401713]
[1753069238335,43.25605505,186.01,186.0,6316.67733806]
[1753069238736,40.18451399,186.01,186.0,6316.67733806]
[1753069246642,40.18451399,186.01,186.0,6284.28153316]
[1753069246842,40.18451399,186.01,186.0,6284.98153316]
[1753069248245,40.18451399,186.01,186.0,6284.28153316]
[1753069249025,40.24451399,186.01,186.0,6284.28153316]
[1753069255235,40.92451399,186.01,186.0,6284.28153316]
[1753069260665,5.43605505,186.01,186.0,6284.28153316]
[1753069260861,43.91605505,186.01,186.0,6284.28153316]
[1753069264264,43.23605505,186.01,186.0,6284.28153316]
[1753069266087,43.91605505,186.01,186.0,6284.28153316]
[1753069266883,5.43605505,186.01,186.0,6284.98153316]
[1753069267200,69.23605505,186.01,186.0,6284.98153316]
[1753069272084,69.23605505,186.01,186.0,6284.28153316]
[1753069273013,43.91605505,186.01,186.0,6284.28153316]
[1753069273210,46.71284479,186.01,186.0,6220.40871475]
[1753069273611,60.78124479,186.01,186.0,6220.40871475]
[1753069273812,50.78124479,186.01,186.0,6220.40871475]
[1753069274004,60.78124479,186.01,186.0,6157.3054274]
[1753069274204,60.78124479,186.01,186.0,6094.03713802]
[1753069274409,50.78124479,186.01,186.0,5965.62012241]
[1753069274704,60.78124479,186.01,186.0,5835.58981918]
[1753069274910,60.78124479,186.01,186.0,5709.44997699]
[1753069276526,50.78124479,186.01,186.0,5709.44997699]
[1753069277198,46.71284479,186.01,186.0,5709.44997699]
[1753069279430,8.23284479,186.01,186.0,5709.44997699]
[1753069279613,46.03284479,186.01,186.0,5710.12997699]
[1753069280106,46.03284479,186.01,186.0,5709.44997699]
[1753069284000,46.73284479,186.01,186.0,5709.44997699]
[1753069284420,56.73284479,186.01,186.0,5709.44997699]
[1753069284831,56.73284479,186.01,186.0,5565.90795561]
[1753069285032,73.51752876,186.01,186.0,5496.5177389]
[1753069285217,73.51752876,186.01,186.0,5365.73363369]
[1753069285527,73.51752876,186.01,186.0,5301.86245519]
[1753069285825,73.51752876,186.01,186.0,5244.28153316]
[1753069287541,56.73284479,186.01,186.0,5244.28153316]
[1753069288840,46.73284479,186.01,186.0,5244.28153316]
[1753069289838,56.73284479,186.01,186.0,5244.28153316]
[1753069290219,46.73284479,186.01,186.0,5244.28153316]
[1753069290732,8.23284479,186.01,186.0,5244.28153316]
[1753069291124,46.03284479,186.01,186.0,5244.96153316]
[1753069292030,46.03284479,186.01,186.0,5244.28153316]
[1753069292741,46.03284479,186.01,186.0,5244.96153316]
[1753069292931,43.23605505,186.01,186.0,5244.96153316]
[1753069293525,69.23605505,186.01,186.0,5244.96153316]
[1753069294664,63.86,186.01,186.0,5244.96153316]
[1753069295020,37.86,186.01,186.0,5244.28153316]
[1753069298824,37.86,186.01,186.0,5244.96153316]
[1753069299244,37.86,186.01,186.0,5244.28153316]
[1753069300070,38.56,186.01,186.0,5244.28153316]
[1753069305856,48.56,186.01,186.0,5244.28153316]
[1753069307866,38.56,186.01,186.0,5244.28153316]
[1753069308068,48.56,186.01,186.0,5244.28153316]
[1753069308768,38.56,186.01,186.0,5244.28153316]
[1753069308969,48.56,186.01,186.0,5244.28153316]
[1753069309186,47.86,186.01,186.0,5244.28153316]
[1753069309586,37.86,186.01,186.0,5244.28153316]
[1753069310399,54.64468397,186.01,186.0,5244.28153316]
[1753069310575,65.30468397,186.01,186.0,5244.28153316]
[1753069313464,70.9037019,186.01,186.0,5244.28153316]
[1753069318593,70.8837019,186.01,186.0,5244.28153316]
[1753069320693,70.8837019,186.01,186.0,5094.48153316]
[1753069323994,60.2237019,186.01,186.0,5094.48153316]
[1753069324212,70.8837019,186.01,186.0,5094.48153316]
[1753069324704,60.8837019,186.01,186.0,5094.48153316]
[1753069325007,70.8837019,186.01,186.0,5094.48153316]
[1753069327214,70.2237019,186.01,186.0,5094.48153316]
[1753069327375,70.8837019,186.01,186.0,5094.48153316]
[1753069330096,60.2237019,186.01,186.0,5095.19153316]
[1753069330298,70.2237019,186.01,186.0,5095.19153316]
[1753069330509,70.2237019,186.01,186.0,5094.48153316]
[1753069330892,60.2237019,186.01,186.0,5094.48153316]
[1753069331298,98.9237019,186.01,186.0,5094.48153316]
[1753069332985,108.9237019,186.01,186.0,5094.48153316]
[1753069333389,109.6437019,186.01,186.0,5094.48153316]
[1753069333589,108.9237019,186.01,186.0,5094.48153316]
[1753069335414,92.13901793,186.01,186.0,5094.48153316]
[1753069335610,92.13901793,186.01,186.0,5095.16153316]
[1753069336318,82.13901793,186.01,186.0,5094.48153316]
[1753069336509,92.13901793,186.01,186.0,5094.48153316]
[1753069337094,82.13901793,186.01,186.0,5094.48153316]
[1753069337295,92.13901793,186.01,186.0,5094.48153316]
[1753069338616,109.6437019,186.01,186.0,5094.48153316]
[1753069339002,99.6437019,186.01,186.0,5094.48153316]
[1753069339202,109.6437019,186.01,186.0,5094.48153316]
[1753069339398,99.6437019,186.01,186.0,5094.48153316]
[1753069339598,109.6437019,186.01,186.0,5094.48153316]
[1753069340322,99.6437019,186.01,186.0,5094.48153316]
[1753069340706,109.6437019,186.01,186.0,5094.48153316]
[1753069343915,124.95550868,186.01,186.0,5061.98153316]
[1753069344225,129.6634245,186.01,186.0,4912.18153316]
[1753069344406,122.02445646,186.01,186.0,4912.18153316]
[1753069344836,114.5282019,186.01,186.0,4912.18153316]
[1753069345722,122.02445646,186.01,186.0,4912.18153316]
[1753069345908,129.66459618,186.01,186.0,4912.18153316]
[1753069348427,130.91862893,186.01,186.0,4799.89277161]
[1753069348631,133.16482893,186.01,186.0,4778.53277161]
[1753069348939,133.16482893,186.01,186.0,4740.24361006]
[1753069349111,133.16482893,186.01,186.0,4723.31444851]
[1753069349311,133.16482893,186.01,186.0,4680.59444851]
[1753069349509,141.24902893,186.01,186.0,4665.31378696]
[1753069349712,103.46902893,186.01,186.0,4665.31378696]
[1753069349923,141.24902893,186.01,186.0,4598.54462541]
[1753069350140,141.24902893,186.01,186.0,4584.30462541]
[1753069350317,141.24902893,186.01,186.0,4581.61459527]
[1753069350515,141.24902893,186.01,186.0,4567.37459527]
[1753069350831,141.24902893,186.01,186.0,4536.20456513]
[1753069351018,141.24902893,186.01,186.0,4535.92150035]
[1753069351334,141.24902893,186.01,186.0,4518.99147021]
[1753069351628,141.24902893,186.01,186.0,4502.06144007]
[1753069351820,103.46902893,186.01,186.0,4352.26144007]
[1753069352006,141.24902893,186.01,186.0,4282.25083435]
[1753069352417,141.24902893,186.01,186.0,4265.32080421]
[1753069352737,141.24902893,186.01,186.0,4226.8778743]
[1753069353036,141.24902893,186.01,186.0,4219.7578743]
[1753069353037,141.23801579,186.01,186.0,4219.7578743]
[1753069353220,141.23801579,186.01,186.0,4209.94784416]
[1753069353539,141.23801579,186.01,186.0,4200.13781402]
[1753069353721,103.45801579,186.01,186.0,4200.13781402]
[1753069354037,141.23801579,186.01,186.0,4197.44778388]
[1753069354438,141.23801579,186.01,186.0,4194.75775374]
[1753069354813,141.23801579,186.01,186.0,4192.0677236]
[1753069355217,141.23801579,186.01,186.0,4189.37769346]
[1753069355520,141.23801579,186.01,186.0,4186.37769346]
[1753069355521,75.15383369,186.01,186.0,4186.37769346]
[1753069355722,54.35901793,186.01,186.0,4187.05769346]
[1753069355938,92.13901793,186.01,186.0,4187.05769346]
[1753069356243,108.9237019,186.01,186.0,4187.05769346]
[1753069357114,108.9237019,186.01,186.0,4186.37769346]
[1753069358665,108.9237019,186.01,186.0,4187.05769346]
[1753069358839,92.13901793,186.01,186.0,4187.05769346]
[1753069360340,92.13901793,186.01,186.0,4192.08349346]
[1753069364531,82.13901793,186.01,186.0,4192.08349346]
[1753069368636,44.35901793,186.01,186.0,4192.08349346]
[1753069368851,73.15044531,186.01,186.0,4192.08349346]
[1753069369233,66.98514531,186.01,186.0,4192.08349346]
[1753069371563,71.35354514,186.01,186.0,4192.08349346]
[1753069373544,54.57854514,186.01,186.0,4192.08349346]
[1753069373862,50.21014531,186.01,186.0,4192.08349346]
[1753069374063,44.04484531,186.01,186.0,4192.08349346]
[1753069375568,6.28484531,186.01,186.0,4192.08349346]
[1753069375868,44.02484531,186.01,186.0,4208.86817743]
[1753069377573,41.38484531,186.01,186.0,4208.86817743]
[1753069380181,41.38484531,186.01,186.0,4192.08349346]
[1753069380480,41.38484531,186.01,186.0,4187.05769346]
[1753069380696,41.38484531,186.01,186.0,4186.37769346]
[1753069380999,55.84989328,186.01,186.0,4186.37769346]
[1753069381178,82.63457725,186.01,186.0,4186.37769346]
[1753069381754,28.10989328,186.01,186.0,4186.37769346]
[1753069382078,52.04484531,186.01,186.0,4186.37769346]
[1753069382463,42.04484531,186.01,186.0,4186.37769346]
[1753069382683,52.04484531,186.01,186.0,4186.37769346]
[1753069383572,41.38484531,186.01,186.0,4186.37769346]
[1753069383780,41.38484531,186.01,186.0,4187.09769346]
[1753069383962,41.38484531,186.01,186.0,4186.37769346]
[1753069388582,41.38484531,186.01,186.0,4187.09769346]
[1753069389670,41.38484531,186.01,186.0,4186.37769346]
[1753069391292,44.18870444,186.01,186.0,4186.37769346]
[1753069392293,44.18870444,186.01,186.0,4187.09769346]
[1753069392498,44.18870444,186.01,186.0,4186.37769346]
[1753069395295,44.88870444,186.01,186.0,4186.37769346]
[1753069397181,61.67338841,186.01,186.0,4186.37769346]
[1753069397384,85.13848463,186.01,186.0,4186.37769346]
[1753069398503,88.74030326,186.01,186.0,4186.37769346]
[1753069398893,85.13848463,186.01,186.0,4186.37769346]
[1753069399905,77.63388841,186.01,186.0,4186.37769346]
[1753069402303,76.93388841,186.01,186.0,4186.37769346]
[1753069402600,77.63388841,186.01,186.0,4186.37769346]
[1753069403189,44.18870444,186.01,186.0,4186.37769346]
[1753069403407,54.18870444,186.01,186.0,4186.37769346]
[1753069403585,44.18870444,186.01,186.0,4186.37769346]
[1753069404204,6.44870444,186.01,186.0,4187.05769346]
[1753069404498,44.18870444,186.01,186.0,4186.37769346]
[1753069404701,44.88870444,186.01,186.0,4186.37769346]
[1753069405691,61.67338841,186.01,186.0,4186.37769346]
[1753069406205,44.18870444,186.01,186.0,4186.37769346]
[1753069409605,44.88870444,186.01,186.0,4186.37769346]
[1753069412012,44.18870444,186.01,186.0,4187.05769346]
[1753069412431,44.18870444,186.01,186.0,4186.37769346]
[1753069413834,44.18870444,186.01,186.0,4187.05769346]
[1753069416320,44.18870444,186.01,186.0,4186.37769346]
[1753069417440,44.18870444,186.01,186.0,4187.05769346]
[1753069417816,44.18870444,186.01,186.0,4186.37769346]
[1753069421368,44.18870444,186.01,186.0,4187.05769346]
[1753069421532,44.18870444,186.01,186.0,4122.37602023]
[1753069422244,44.18870444,186.01,186.0,3992.63838359]
[1753069423035,6.44870444,186.01,186.0,3872.64887788]
[1753069423236,44.16870444,186.01,186.0,3810.23711873]
[1753069423456,44.16870444,186.01,186.0,3687.16118129]
[1753069423760,44.16870444,186.01,186.0,3508.29869914]
[1753069424154,44.16870444,186.01,186.0,3452.25948306]
[1753069424454,44.16870444,186.01,186.0,3395.56444773]
[1753069424646,46.31912646,186.01,186.0,3280.91800813]
[1753069425235,46.31912646,186.01,186.0,3228.03023976]
[1753069425431,46.31912646,186.01,186.0,3177.91014498]
[1753069425841,46.31912646,186.01,186.0,3137.22818377]
[1753069431255,46.31912646,186.01,186.0,3136.54818377]
[1753069431565,46.31912646,186.01,186.0,3137.23818377]
[1753069431757,46.31912646,186.01,186.0,3136.54818377]
[1753069431965,46.31912646,186.01,186.0,3137.23818377]
[1753069432154,8.59912646,186.01,186.0,3137.23818377]
[1753069432465,46.31912646,186.01,186.0,3137.23818377]
[1753069434668,44.16870444,186.01,186.0,3137.23818377]
[1753069435961,6.44870444,186.01,186.0,3129.10179153]
[1753069436271,6.44870444,186.01,186.0,3127.14905739]
[1753069436439,44.16870444,186.01,186.0,3127.06769346]
[1753069436640,6.44870444,186.01,186.0,3127.06769346]
[1753069436854,41.36484531,186.01,186.0,3127.06769346]
[1753069442558,0.06,186.05,186.01,20.44668397]
[1753069442767,36.98,186.04,186.03,16.78468397]
[1753069443070,36.98,186.04,186.03,17.47468397]
[1753069443374,0.06,186.09,186.04,12.1749]
[1753069443574,37.7,186.08,186.06,16.78468397]
[1753069443777,37.7,186.08,186.07,23.50191611]
[1753069444163,19.0915,186.08,186.07,29.49701611]
[1753069446179,19.0915,186.08,186.07,12.66433214]
[1753069446350,26.0,186.05,186.03,16.78468397]
[1753069446547,37.7,186.04,186.03,16.78468397]
[1753069447190,37.7,186.04,186.02,11.8987]
[1753069448452,26.0,186.01,186.0,3126.37769346]
[1753069448676,63.68,186.01,186.0,3126.37769346]
[1753069449466,64.37,186.01,186.0,3126.37769346]
[1753069450074,64.37,186.01,186.0,3125.87769346]
[1753069451170,63.68,186.01,186.0,3125.87769346]
[1753069453085,64.37,186.01,186.0,3125.87769346]
[1753069453766,63.68,186.01,186.0,3125.87769346]
[1753069453971,64.36,186.01,186.0,3125.87769346]
[1753069455487,42.02213829,186.01,186.0,3125.87769346]
[1753069455982,37.68,186.01,186.0,3125.87769346]
[1753069459883,38.36,186.01,186.0,3125.87769346]
[1753069462587,38.42,186.01,186.0,3125.87769346]
[1753069466494,44.02277473,186.01,186.0,3125.87769346]
[1753069466681,43.34277473,186.01,186.0,3125.87769346]
[1753069471300,6.34277473,186.01,186.0,3125.87769346]
[1753069471597,44.02277473,186.01,186.0,3125.87769346]
[1753069479074,5.66277473,186.01,186.0,3125.87769346]
[1753069479290,43.34277473,186.01,186.0,3125.87769346]
[1753069481680,44.02277473,186.01,186.0,3125.87769346]
[1753069489692,60.8074587,186.01,186.0,3125.87769346]
[1753069489888,73.84379936,186.01,186.0,3125.87769346]
[1753069490112,89.98628336,186.01,186.0,3125.87769346]
[1753069490910,94.20860733,186.01,186.0,3125.87769346]
[1753069491288,97.823414,186.01,186.0,3125.87769346]
[1753069494118,97.61993967,186.01,186.0,3125.87769346]
[1753069494495,93.60109003,186.01,186.0,3125.87769346]
[1753069497917,71.65536537,186.01,186.0,3125.87769346]
[1753069498929,72.34226343,186.01,186.0,3125.87769346]
[1753069499114,55.55757946,186.01,186.0,3125.87769346]
[1753069499307,47.64447946,186.01,186.0,3125.87769346]
[1753069505507,47.62447946,186.01,186.0,3125.87769346]
[1753069506016,42.02170473,186.01,186.0,3125.87769346]
[1753069507302,37.72,186.01,186.0,3125.87769346]
[1753069509145,37.72,186.01,186.0,3142.66237743]
[1753069510230,63.72,186.01,186.0,3142.66237743]
[1753069511460,63.72,186.01,186.0,3125.87769346]
[1753069512609,64.39,186.01,186.0,3125.87769346]
[1753069512810,63.72,186.01,186.0,3125.87769346]
[1753069513316,26.06,186.01,186.0,3125.87769346]
[1753069513538,63.7,186.01,186.0,3125.87769346]
[1753069517732,64.37,186.01,186.0,3125.87769346]
[1753069518524,67.16686343,186.01,186.0,3125.87769346]
[1753069524631,69.97418289,186.01,186.0,3125.87769346]
[1753069527838,86.75886686,186.01,186.0,3125.87769346]
[1753069528039,113.01076766,186.01,186.0,3125.87769346]
[1753069528344,107.0230282,186.01,186.0,3125.87769346]
[1753069528531,103.01076766,186.01,186.0,3125.87769346]
[1753069530229,99.39954352,186.01,186.0,3125.87769346]
[1753069530933,103.00919478,186.01,186.0,3125.87769346]
[1753069531136,99.39954352,186.01,186.0,3125.87769346]
[1753069531328,103.00904072,186.01,186.0,3125.87769346]
[1753069532758,99.39954352,186.01,186.0,3125.87769346]
[1753069533141,103.00817139,186.01,186.0,3125.87769346]
[1753069535439,60.46388075,186.01,186.0,3125.87769346]
[1753069535655,91.09942066,186.01,186.0,3125.87769346]
[1753069536051,86.75886686,186.01,186.0,3125.87769346]
[1753069539355,93.84732093,186.01,186.0,3125.87769346]
[1753069539874,122.87010808,186.01,186.0,3125.87769346]
[1753069540161,112.87010808,186.01,186.0,3125.87769346]
[1753069540370,122.87010808,186.01,186.0,3125.87769346]
[1753069540554,112.87010808,186.01,186.0,3125.87769346]
[1753069540738,122.87010808,186.01,186.0,3125.87769346]
[1753069540945,112.87010808,186.01,186.0,3125.87769346]
[1753069541343,105.25338428,186.01,186.0,3125.87769346]
[1753069541672,98.24892419,186.01,186.0,2965.81787753]
[1753069541859,98.24892419,186.01,186.0,2800.57022664]
[1753069542375,98.24892419,186.01,186.0,2627.37188924]
[1753069542862,98.24892419,186.01,186.0,2457.8995408]
[1753069543036,98.24892419,186.01,186.0,2291.77627223]
[1753069543640,98.24892419,186.01,186.0,2135.59600747]
[1753069543872,98.24892419,186.01,186.0,2059.18958188]
[1753069544178,98.24892419,186.01,186.0,1902.62595234]
[1753069544548,98.24892419,186.01,186.0,1746.7461826]
[1753069544745,113.62497924,186.01,186.0,1746.7461826]
[1753069544948,103.62497924,186.01,186.0,1592.90605859]
[1753069545387,103.62497924,186.01,186.0,1519.63891889]
[1753069545676,103.62497924,186.01,186.0,1446.81852846]
[1753069546468,77.62497924,186.01,186.0,1446.81852846]
[1753069547467,84.62943933,186.01,186.0,1446.81852846]
[1753069547669,84.62943933,186.01,186.0,1446.09852846]
[1753069548974,88.63571756,186.01,186.0,1446.09852846]
[1753069549185,84.62943933,186.01,186.0,1446.09852846]
[1753069551267,80.22783607,186.01,186.0,1446.09852846]
[1753069552673,88.52738313,186.01,186.0,1446.09852846]
[1753069552875,102.13234062,186.01,186.0,1446.09852846]
[1753069555600,102.13234062,186.01,186.0,1350.14726653]
[1753069555806,102.13234062,186.01,186.0,1159.780239]
[1753069556005,100.52616482,186.01,186.0,978.75933983]
[1753069557712,104.94013648,186.01,186.0,978.75933983]
[1753069558690,104.94013648,186.01,186.0,946.25933983]
[1753069560591,104.94013648,186.01,186.0,936.44988881]
[1753069561016,104.94013648,186.01,186.0,933.76043779]
[1753069561213,100.93479274,186.01,186.0,926.64043779]
[1753069561401,124.87053454,186.01,186.0,888.16852811]
[1753069561706,124.87053454,186.01,186.0,871.23851843]
[1753069561909,124.87053454,186.01,186.0,849.87851843]
[1753069562111,124.87053454,186.01,186.0,840.06850875]
[1753069562304,124.87053454,186.01,186.0,818.70850875]
[1753069562509,124.87053454,186.01,186.0,811.58850875]
[1753069562700,124.87053454,186.01,186.0,797.34850875]
[1753069562898,124.87053454,186.01,186.0,783.10850875]
[1753069563502,124.87053454,186.01,186.0,775.98850875]
[1753069563721,124.87053454,186.01,186.0,773.29849907]
[1753069563918,87.23053454,186.01,186.0,737.69849907]
[1753069564294,112.20723454,186.01,186.0,730.57849907]
[1753069564524,104.14315197,186.01,186.0,730.57849907]
[1753069565025,13.68311204,186.01,186.0,731.29849907]
[1753069565326,47.69815455,186.01,186.0,731.29849907]
[1753069565613,47.69815455,186.01,186.0,724.17849907]
[1753069565822,9.35815455,186.01,186.0,731.22439907]
[1753069566031,38.7,186.03,186.0,743.35839907]
[1753069566219,37.64,186.02,186.0,742.63839907]
[1753069566392,24.86417389,186.03,186.02,12.134]
[1753069566594,0.06,186.05,186.03,24.00688397]
[1753069566797,0.06,186.05,186.04,17.32220278]
[1753069567027,30.4778,186.05,186.04,17.32220278]
[1753069567404,23.1759,186.05,186.04,17.32220278]
[1753069567606,0.06,186.05,186.04,20.60552371]
[1753069569229,0.06,186.05,186.04,17.32220278]
[1753069569527,0.06,186.05,186.04,20.60552371]
[1753069572023,0.06,186.05,186.04,17.32220278]
[1753069573230,26.06,186.05,186.04,17.32220278]
[1753069574525,26.06,186.05,186.03,3.0977]
[1753069574736,63.6,186.04,186.03,3.0977]
[1753069578721,26.0,186.04,186.03,19.88238397]
[1753069578931,0.06,186.05,186.03,20.6055526]
[1753069579132,37.66,186.05,186.04,20.0680049]
[1753069579606,0.06,186.05,186.04,20.0680049]
[1753069580224,0.06,186.05,186.04,30.0680049]
[1753069580430,0.06,186.05,186.04,30.60552371]
[1753069580599,0.06,186.05,186.04,20.60552371]
[1753069581030,0.06,186.05,186.04,36.73552371]
[1753069581233,0.06,186.05,186.04,46.73552371]
[1753069583616,0.06,186.05,186.04,43.45220278]
[1753069583822,0.06,186.05,186.04,46.73552371]
[1753069585540,0.06,186.05,186.04,134.23552371]
[1753069585715,0.06,186.05,186.04,133.6980049]
[1753069586838,0.06,186.05,186.04,171.2780049]
[1753069591127,0.06,186.05,186.04,130.41468397]
[1753069591430,0.06,186.05,186.04,133.6980049]
[1753069594737,0.06,186.09,186.08,46.1980049]
[1753069594939,0.06,186.09,186.08,134.17540816]
[1753069595135,0.06,186.09,186.08,133.6380049]